[Event "105th British-ch 2018"]
[Site "Hull"]
[Date "2018.08.04"]
[Round "8"]
[White "Burke, Mitchell R"]
[Black "Jackson, Sheila"]
[Result "1/2-1/2"]
[ECO "C68"]
[WhiteElo "1988"]
[BlackElo "2072"]
[Annotator "NA"]
[PlyCount "51"]
[EventDate "2018.07.28"]
[EventType "swiss"]
[EventCountry "GBR"]
[SourceTitle "playchess.com"]
[Source "ChessBase"]
[SourceQuality "1"]
[TimeControl "40/5400+30:1800+30"]

1. e4 {[%emt 0:00:06]} e5 {[%emt 0:00:00]} 2. Nf3 {[%emt 0:01:26]} Nc6 {[%emt 0:00:00]} 3. Bb5 {[%emt 0:00:42]} a6 {[%emt 0:00:00]} 4. Bxc6 {[%emt 0:00:30]} dxc6 {[%emt 0:00:00]} 5. O-O {[%emt 0:00:50]} Qf6 {[%emt 0:01:35]} 6. d4 {[%emt 0:06:22]} exd4 {[%emt 0:00:11]} 7. Bg5 {[%emt 0:03:22]} Qd6 {[%emt 0:01:17]} 8. Qxd4 {[%emt 0:01:56]} f6 {[%emt 0:00:10]} 9. Be3 {[%emt 0:03:36]} Qxd4 {[%emt 0:00:05]} 10. Nxd4 {[%emt 0:05:28]} Bd7 {[%emt 0:00:07]} 11. Nc3 {[%emt 0:02:15]} O-O-O {[%emt 0:00:12]} 12. Rad1 {[%emt 0:00:28]} Re8 {[%emt 0:00:49]} 13. Nde2 {[%emt 0:20:35]} g5 {[%emt 0:12:14]} 14. f3 {[%emt 0:08:33]} Bd6 {[%emt 0:02:20]} 15. Na4 {[%emt 0:04:33]} Be6 {[%emt 0:08:12]} 16. b3 {[%emt 0:02:13]} Ne7 {[%emt 0:01:08]} 17. Bd4 {[%emt 0:09:26]} Rhf8 {[%emt 0:00:15]} 18. Nc5 {[%emt 0:00:43]} Bg8 {[%emt 0:02:33]} 19. Ng3 {[%emt 0:06:21]} b6 {[%emt 0:05:59]} 20. Nd3 {[%emt 0:03:41]} c5 {[%emt 0:01:34]} 21. Bc3 {[%emt 0:00:32]} c4 {[%emt 0:03:41]} 22. Nf2 {[%emt 0:02:38]} cxb3 {[%emt 0:02:47]} 23. axb3 {[%emt 0:00:46]} a5 {[%emt 0:04:05]} 24. Ng4 {[%emt 0:01:33]} Bxg3 {[%emt 0:11:25]} 25. hxg3 {[%emt 0:00:46]} f5 {[%emt 0:00:24]} 26. Nf6 {[%emt 0:00:33]} 1/2-1/2

[Event "105th British-ch 2018"]
[Site "Hull"]
[Date "2018.08.04"]
[Round "8"]
[White "De Coverly, Roger D"]
[Black "Sugden, John N"]
[Result "1-0"]
[ECO "C00"]
[WhiteElo "1920"]
[BlackElo "2090"]
[Annotator "NA"]
[PlyCount "125"]
[EventDate "2018.07.28"]
[EventType "swiss"]
[EventCountry "GBR"]
[SourceTitle "playchess.com"]
[Source "ChessBase"]
[SourceQuality "1"]
[TimeControl "40/5400+30:1800+30"]

1. e4 {[%emt 0:00:00]} c5 {[%emt 0:00:02]} 2. Nf3 {[%emt 0:00:00]} e6 {[%emt 0:00:26]} 3. d3 {[%emt 0:00:18]} Nc6 {[%emt 0:02:17]} 4. g3 {[%emt 0:00:06]} Nf6 {[%emt 0:03:24]} 5. Bg2 {[%emt 0:00:44]} d5 {[%emt 0:02:43]} 6. Nbd2 {[%emt 0:00:19]} Be7 {[%emt 0:02:01]} 7. O-O {[%emt 0:00:22]} O-O {[%emt 0:03:16]} 8. Re1 {[%emt 0:03:30]} Bd7 {[%emt 0:03:14]} 9. e5 {[%emt 0:04:11]} Ne8 {[%emt 0:00:21]} 10. Nf1 {[%emt 0:01:10]} f6 {[%emt 0:03:03]} 11. exf6 {[%emt 0:00:53]} Bxf6 {[%emt 0:00:13]} 12. Ne3 {[%emt 0:02:16]} Nd6 {[%emt 0:06:55]} 13. Ng4 {[%emt 0:02:20]} Nf7 {[%emt 0:00:49]} 14. Nxf6+ {[%emt 0:08:43]} Qxf6 {[%emt 0:00:38]} 15. c4 {[%emt 0:04:43]} Rad8 {[%emt 0:07:54]} 16. Rf1 {[%emt 0:08:32]} Bc8 {[%emt 0:04:16]} 17. Qb3 {[%emt 0:02:41]} dxc4 {[%emt 0:06:41]} 18. Qxc4 {[%emt 0:02:08]} b6 {[%emt 0:01:11]} 19. h4 {[%emt 0:04:39]} h6 {[%emt 0:04:10]} 20. Bd2 {[%emt 0:06:06]} e5 {[%emt 0:07:46]} 21. Bc3 {[%emt 0:04:09]} Be6 {[%emt 0:04:33]} 22. Qa6 {[%emt 0:04:32]} Bd5 {[%emt 0:02:57]} 23. Nh2 {[%emt 0:03:31]} Bxg2 {[%emt 0:00:40]} 24. Kxg2 {[%emt 0:00:06]} Qd6 {[%emt 0:01:10]} 25. Rad1 {[%emt 0:01:34]} Qd5+ {[%emt 0:00:32]} 26. Kg1 {[%emt 0:01:00]} Nd6 {[%emt 0:01:22]} 27. Qa4 {[%emt 0:02:46]} Rf7 {[%emt 0:03:43]} 28. a3 {[%emt 0:02:40]} Nf5 {[%emt 0:03:53]} 29. Qe4 {[%emt 0:03:23]} Nfd4 {[%emt 0:01:25]} 30. Qxd5 {[%emt 0:02:52]} Rxd5 {[%emt 0:02:07]} 31. Kg2 {[%emt 0:02:18]} Rfd7 {[%emt 0:04:32]} 32. Rde1 {[%emt 0:02:32]} Nb5 {[%emt 0:01:03]} 33. Ng4 {[%emt 0:03:09]} Nxc3 {[%emt 0:01:55]} 34. bxc3 {[%emt 0:00:06]} Rxd3 {[%emt 0:01:31]} 35. Rxe5 {[%emt 0:01:25]} Rxc3 {[%emt 0:01:12]} 36. Re8+ {[%emt 0:01:03]} Kh7 {[%emt 0:00:50]} 37. h5 {[%emt 0:03:57]} Re7 {[%emt 0:06:27]} 38. Re1 {[%emt 0:03:53]} Rxe1 {[%emt 0:02:37]} 39. Rxe1 {[%emt 0:00:05]} Kg8 {[%emt 0:03:41]} 40. Re6 {[%emt 0:03:58]} Nd4 {[%emt 0:00:56]} 41. Re8+ {[%emt 0:30:40]} Kf7 {[%emt 0:31:13]} 42. Rb8 {[%emt 0:00:25]} Rxa3 {[%emt 0:00:00]} 43. Rb7+ {[%emt 0:00:00]} Ke6 {[%emt 0:00:00]} 44. Rxg7 {[%emt 0:00:00]} c4 {[%emt 0:00:00]} 45. Rg6+ {[%emt 0:00:00]} Kd5 {[%emt 0:00:00]} 46. Rxh6 {[%emt 0:00:00]} c3 {[%emt 0:00:00]} 47. Ne3+ {[%emt 0:00:00]} Ke4 {[%emt 0:00:00]} 48. Rh8 {[%emt 0:00:00]} c2 {[%emt 0:00:00]} 49. Rc8 {[%emt 0:00:00]} Ra5 {[%emt 0:00:00]} 50. g4 {[%emt 0:00:00]} Rg5 {[%emt 0:00:00]} 51. h6 {[%emt 0:00:00]} Rg8 {[%emt 0:00:00]} 52. Rxg8 {[%emt 0:00:00]} c1=Q {[%emt 0:00:00]} 53. h7 {[%emt 0:00:00]} Ne2 {[%emt 0:00:00]} 54. Re8+ {[%emt 0:00:00]} Kf4 {[%emt 0:04:15]} 55. Nd5+ {[%emt 0:00:00]} Kxg4 {[%emt 0:01:15]} 56. Rg8+ {[%emt 0:00:00]} Kf5 {[%emt 0:00:32]} 57. h8=Q {[%emt 0:00:00]} Qg1+ {[%emt 0:00:39]} 58. Kf3 {[%emt 0:00:00]} Nd4+ {[%emt 0:00:21]} 59. Qxd4 {[%emt 0:01:37]} Qh1+ {[%emt 0:00:30]} 60. Rg2 {[%emt 0:01:09]} Qh3+ {[%emt 0:00:49]} 61. Rg3 {[%emt 0:00:25]} Qh1+ {[%emt 0:00:40]} 62. Ke2 {[%emt 0:00:23]} Qh5+ {[%emt 0:00:21]} 63. Kd2 {[%emt 0:00:22]} 1-0

[Event "105th British-ch 2018"]
[Site "Hull"]
[Date "2018.08.05"]
[Round "9"]
[White "Pert, Nicholas"]
[Black "Hawkins, Jonathan"]
[Result "*"]
[ECO "D37"]
[WhiteElo "2544"]
[BlackElo "2590"]
[Annotator "ChessBase"]
[PlyCount "44"]
[EventDate "2018.07.28"]
[EventType "swiss"]
[EventCountry "GBR"]
[SourceTitle "playchess.com"]
[Source "ChessBase"]
[SourceQuality "1"]
[TimeControl "40/5400+30:1800+30"]

1. d4 {[%emt 0:00:59]} d5 {[%emt 0:00:00]} 2. c4 {[%emt 0:00:09]} e6 {[%emt 0:00:13]} 3. Nf3 {[%emt 0:00:08]} Nf6 {[%emt 0:00:07]} 4. Nc3 {[%emt 0:00:04]} dxc4 {[%emt 0:00:06]} 5. e4 {[%emt 0:00:52]} Bb4 {[%emt 0:00:09]} 6. Bxc4 {[%emt 0:00:30]} Nxe4 {[%emt 0:00:51]} 7. O-O {[%emt 0:00:31]} Nxc3 {[%emt 0:02:15]} 8. bxc3 {[%emt 0:00:10]} Be7 {[%emt 0:00:38]} (8... Bxc3 9. Rb1) 9. Ne5 {[%emt 0:01:48]} O-O {[%emt 0:01:08]} 10. Qg4 {[%emt 0:03:39]} Nc6 {[%emt 0:00:41]} 11. Re1 {[%emt 0:01:18]} Nxe5 {[%emt 0:10:58]} (11... f5 12. Qf3 Nxe5 13. Rxe5 Kh8 14. Bf4 Bd6 15. Re3 Bxf4 16. Qxf4) 12. dxe5 {[%emt 0:03:30]} f5 {[%emt 0:00:41]} 13. exf6 {[%emt 0:00:59]} Bxf6 {[%emt 0:01:43]} 14. Ba3 {[%emt 0:11:00]} Bxc3 {[%emt 0:17:16]} 15. Rad1 {[%emt 0:02:46]} Qf6 {[%emt 0:00:07]} 16. Bxf8 Bxe1 17. Bxg7 Qxg7 (17... Qxf2+ 18. Kh1) (17... Bxf2+ 18. Kf1) 18. Rd8+ Kf7 19. Qf4+ Ke7 (19... Qf6 20. Rf8+) (19... Kg6) 20. Qxc7+ (20. Qh4+ Kf7 (20... Qf6 21. Re8+)) 20... Kf6 21. Qf4+ Ke7 22. Qd6+ Kf7 *

[Event "105th British-ch 2018"]
[Site "Hull"]
[Date "2018.08.05"]
[Round "9"]
[White "Fodor, Tamas Jr."]
[Black "Hebden, Mark L"]
[Result "1-0"]
[ECO "E94"]
[WhiteElo "2506"]
[BlackElo "2423"]
[Annotator "ChessBase"]
[PlyCount "61"]
[EventDate "2018.07.28"]
[EventType "swiss"]
[EventCountry "GBR"]
[SourceTitle "playchess.com"]
[Source "ChessBase"]
[SourceQuality "1"]
[TimeControl "40/5400+30:1800+30"]

1. d4 {[%emt 0:00:00]} Nf6 {[%emt 0:00:00]} 2. c4 {[%emt 0:00:00]} g6 {[%emt 0:00:12]} 3. Nc3 {[%emt 0:00:00]} Bg7 {[%emt 0:00:20]} 4. e4 {[%emt 0:00:00]} d6 {[%emt 0:00:15]} 5. Nf3 {[%emt 0:00:00]} O-O {[%emt 0:00:14]} 6. Be2 {[%emt 0:00:00]} e5 {[%emt 0:00:22]} 7. O-O {[%emt 0:00:06]} Nbd7 {[%emt 0:01:57]} 8. Qc2 {[%emt 0:02:16]} c6 {[%emt 0:01:55]} 9. Rd1 {[%emt 0:00:41]} Qe7 {[%emt 0:00:56]} 10. Bf1 {[%emt 0:04:33]} h6 {[%emt 0:06:50]} 11. Rb1 {[%emt 0:09:34]} Ng4 {[%emt 0:05:51]} 12. h3 {[%emt 0:17:50]} Ngf6 {[%emt 0:02:23]} 13. dxe5 {[%emt 0:02:56]} Nxe5 {[%emt 0:02:01]} 14. Nxe5 {[%emt 0:04:20]} Qxe5 {[%emt 0:02:29]} 15. Be3 {[%emt 0:00:29]} Re8 {[%emt 0:01:04]} 16. f3 {[%emt 0:03:57]} g5 {[%emt 0:08:14]} 17. Qf2 {[%emt 0:00:15]} a6 {[%emt 0:02:54]} 18. Rd2 {[%emt 0:02:39]} Nh5 {[%emt 0:01:27]} 19. Bd4 {[%emt 0:00:51]} Qf4 {[%emt 0:05:58]} 20. Bxg7 {[%emt 0:07:59]} Nxg7 {[%emt 0:02:44]} 21. Rbd1 {[%emt 0:00:05]} Re6 {[%emt 0:03:07]} 22. Na4 {[%emt 0:02:59]} b5 {[%emt 0:05:22]} 23. Nb6 {[%emt 0:00:07]} Rb8 {[%emt 0:00:15]} 24. c5 {[%emt 0:00:06]} Ne8 {[%emt 0:00:45]} 25. cxd6 {[%emt 0:01:49]} Rxd6 {[%emt 0:02:30]} 26. Rxd6 {[%emt 0:00:56]} Nxd6 {[%emt 0:00:05]} 27. Qc5 {[%emt 0:01:08]} Nb7 {[%emt 0:04:20]} 28. Qxc6 {[%emt 0:01:24]} Be6 {[%emt 0:01:13]} 29. Nd5 {[%emt 0:01:23]} Qe5 {[%emt 0:01:47]} 30. Qxa6 {[%emt 0:00:38]} Nc5 {[%emt 0:00:36]} 31. Qa7 {[%emt 0:00:40]} 1-0

[Event "105th British-ch 2018"]
[Site "Hull"]
[Date "2018.08.05"]
[Round "9"]
[White "Emms, John M"]
[Black "Webb, Laurence E"]
[Result "1/2-1/2"]
[ECO "D42"]
[WhiteElo "2488"]
[BlackElo "2306"]
[Annotator "ChessBase"]
[PlyCount "60"]
[EventDate "2018.07.28"]
[EventType "swiss"]
[EventCountry "GBR"]
[SourceTitle "playchess.com"]
[Source "ChessBase"]
[SourceQuality "1"]
[TimeControl "40/5400+30:1800+30"]

1. Nf3 {[%emt 0:01:42]} d5 {[%emt 0:00:28]} 2. c4 {[%emt 0:00:47]} e6 {[%emt 0:01:06]} 3. e3 {[%emt 0:00:27]} Nf6 {[%emt 0:00:32]} 4. Nc3 {[%emt 0:00:32]} c5 {[%emt 0:00:41]} 5. d4 {[%emt 0:00:47]} Nc6 {[%emt 0:01:04]} 6. cxd5 {[%emt 0:01:23]} Nxd5 {[%emt 0:03:51]} 7. Bd3 {[%emt 0:00:30]} Be7 {[%emt 0:00:51]} 8. O-O {[%emt 0:00:38]} O-O {[%emt 0:00:48]} 9. a3 {[%emt 0:02:24]} b6 {[%emt 0:05:13]} 10. Qc2 {[%emt 0:05:14]} h6 {[%emt 0:01:53]} 11. Rd1 {[%emt 0:09:48]} Nxc3 {[%emt 0:08:28]} 12. bxc3 {[%emt 0:00:04]} cxd4 {[%emt 0:03:29]} 13. cxd4 {[%emt 0:08:03]} Bb7 {[%emt 0:00:17]} 14. Bb2 {[%emt 0:01:21]} Rc8 {[%emt 0:00:44]} 15. Qe2 {[%emt 0:00:27]} Bf6 {[%emt 0:05:09]} 16. Bb5 {[%emt 0:04:05]} Na5 {[%emt 0:04:22]} 17. e4 {[%emt 0:05:45]} Qc7 {[%emt 0:03:46]} 18. Rac1 {[%emt 0:04:52]} Qf4 {[%emt 0:00:50]} 19. Bd3 {[%emt 0:00:50]} Rfd8 {[%emt 0:07:32]} 20. Rxc8 {[%emt 0:05:16]} Rxc8 {[%emt 0:00:57]} 21. h3 {[%emt 0:01:02]} Qc7 {[%emt 0:01:23]} 22. g3 {[%emt 0:06:41]} Nc4 {[%emt 0:09:09]} 23. Rc1 {[%emt 0:03:43]} b5 {[%emt 0:00:16]} 24. a4 {[%emt 0:08:49]} a6 {[%emt 0:00:25]} 25. axb5 {[%emt 0:12:22]} axb5 {[%emt 0:00:09]} 26. Nd2 {[%emt 0:01:27]} Qb6 {[%emt 0:08:12]} 27. Nxc4 {[%emt 0:01:10]} bxc4 {[%emt 0:00:17]} 28. Rxc4 {[%emt 0:00:07]} Rxc4 {[%emt 0:00:33]} 29. Bxc4 {[%emt 0:00:03]} Bxd4 {[%emt 0:02:33]} 30. Bxd4 {[%emt 0:00:05]} Qxd4 {[%emt 0:00:57]} 1/2-1/2

[Event "105th British-ch 2018"]
[Site "Hull"]
[Date "2018.08.05"]
[Round "9"]
[White "Ward, Chris G"]
[Black "Rudd, Jack"]
[Result "1-0"]
[ECO "A65"]
[WhiteElo "2434"]
[BlackElo "2244"]
[Annotator "ChessBase"]
[PlyCount "59"]
[EventDate "2018.07.28"]
[EventType "swiss"]
[EventCountry "GBR"]
[SourceTitle "playchess.com"]
[Source "ChessBase"]
[SourceQuality "1"]
[TimeControl "40/5400+30:1800+30"]

1. d4 {[%emt 0:01:35]} d6 {[%emt 0:00:00]} 2. e4 {[%emt 0:00:58]} g6 {[%emt 0:00:00]} 3. c4 {[%emt 0:00:09]} Bg7 {[%emt 0:00:00]} 4. Nc3 {[%emt 0:00:23]} Nf6 {[%emt 0:00:00]} 5. Nge2 {[%emt 0:00:20]} O-O {[%emt 0:00:10]} 6. Ng3 {[%emt 0:00:06]} c5 {[%emt 0:00:09]} 7. d5 {[%emt 0:00:12]} e6 {[%emt 0:00:04]} 8. Be2 {[%emt 0:00:12]} exd5 {[%emt 0:00:08]} 9. cxd5 {[%emt 0:00:09]} Na6 {[%emt 0:00:23]} 10. O-O {[%emt 0:00:45]} Nc7 {[%emt 0:00:06]} 11. a4 {[%emt 0:01:04]} b6 {[%emt 0:00:07]} 12. Bf4 {[%emt 0:06:34]} Re8 {[%emt 0:01:24]} 13. Qd2 {[%emt 0:03:45]} a6 {[%emt 0:00:51]} 14. Bh6 {[%emt 0:08:04]} Bh8 {[%emt 0:00:42]} 15. f4 {[%emt 0:11:20]} Rb8 {[%emt 0:01:49]} 16. Rad1 {[%emt 0:17:41]} b5 {[%emt 0:02:15]} 17. e5 {[%emt 0:16:57]} b4 {[%emt 0:08:20]} 18. Nce4 {[%emt 0:03:02]} Nxe4 {[%emt 0:00:30]} 19. Nxe4 {[%emt 0:00:29]} dxe5 {[%emt 0:00:24]} 20. d6 {[%emt 0:05:55]} Ne6 {[%emt 0:00:16]} 21. d7 {[%emt 0:03:55]} Bxd7 {[%emt 0:01:10]} 22. Qxd7 {[%emt 0:00:11]} exf4 {[%emt 0:00:11]} 23. Qxd8 {[%emt 0:04:31]} Rbxd8 {[%emt 0:00:07]} 24. Rxd8 {[%emt 0:01:13]} Rxd8 {[%emt 0:00:08]} 25. b3 {[%emt 0:00:53]} a5 {[%emt 0:01:33]} 26. Bc4 {[%emt 0:01:21]} Bd4+ {[%emt 0:01:37]} 27. Kh1 {[%emt 0:00:10]} Be3 {[%emt 0:00:30]} 28. Ng5 {[%emt 0:04:41]} Nxg5 {[%emt 0:01:06]} 29. Bxg5 {[%emt 0:00:13]} Rd4 {[%emt 0:00:05]} 30. g3 {[%emt 0:02:14]} 1-0

[Event "105th British-ch 2018"]
[Site "Hull"]
[Date "2018.08.05"]
[Round "9"]
[White "Trent, Lawrence"]
[Black "Derakhshani, Borna"]
[Result "1-0"]
[ECO "D01"]
[WhiteElo "2406"]
[BlackElo "2315"]
[Annotator "NA"]
[PlyCount "103"]
[EventDate "2018.07.28"]
[EventType "swiss"]
[EventCountry "GBR"]
[SourceTitle "playchess.com"]
[Source "ChessBase"]
[SourceQuality "1"]
[TimeControl "40/5400+30:1800+30"]

1. d4 {[%emt 0:01:54]} Nf6 {[%emt 0:00:09]} 2. Bg5 {[%emt 0:01:11]} d5 {[%emt 0:01:30]} 3. Nc3 {[%emt 0:04:29]} Bf5 {[%emt 0:06:50]} 4. Bxf6 {[%emt 0:03:01]} gxf6 {[%emt 0:04:29]} 5. e3 {[%emt 0:00:46]} Rg8 {[%emt 0:01:49]} 6. Nge2 {[%emt 0:05:38]} Nc6 {[%emt 0:06:24]} 7. Nf4 {[%emt 0:12:32]} e6 {[%emt 0:10:52]} 8. Bd3 {[%emt 0:00:32]} Bxd3 {[%emt 0:00:45]} 9. Qxd3 {[%emt 0:01:12]} f5 {[%emt 0:00:11]} 10. Nce2 {[%emt 0:03:18]} Qd6 {[%emt 0:12:12]} 11. a3 {[%emt 0:06:24]} O-O-O {[%emt 0:02:52]} 12. b4 {[%emt 0:05:56]} Kb8 {[%emt 0:03:11]} 13. g3 {[%emt 0:11:16]} e5 {[%emt 0:10:46]} 14. dxe5 {[%emt 0:00:04]} Nxe5 {[%emt 0:00:19]} 15. Qd1 {[%emt 0:08:53]} Nf3+ {[%emt 0:00:35]} 16. Kf1 {[%emt 0:00:02]} Bg7 {[%emt 0:02:55]} 17. c3 {[%emt 0:01:09]} Be5 {[%emt 0:09:33]} 18. Nd3 {[%emt 0:02:47]} Qh6 {[%emt 0:02:51]} 19. h4 {[%emt 0:01:44]} Bd6 {[%emt 0:01:45]} 20. Nef4 {[%emt 0:06:54]} Ne5 {[%emt 0:00:17]} 21. Nxe5 {[%emt 0:00:23]} Bxe5 {[%emt 0:00:01]} 22. Qd3 {[%emt 0:00:10]} Qc6 {[%emt 0:01:34]} 23. b5 {[%emt 0:04:10]} Qxc3 {[%emt 0:00:51]} 24. Qxc3 {[%emt 0:01:04]} Bxc3 {[%emt 0:00:01]} 25. Rd1 {[%emt 0:00:01]} Be5 {[%emt 0:03:19]} 26. Nxd5 {[%emt 0:01:38]} Rd7 {[%emt 0:06:07]} 27. Ke2 {[%emt 0:00:41]} Rgd8 {[%emt 0:00:15]} 28. Nb4 {[%emt 0:01:23]} Bb2 {[%emt 0:01:34]} 29. Rxd7 {[%emt 0:03:10]} Rxd7 {[%emt 0:00:00]} 30. a4 {[%emt 0:00:02]} Bc3 {[%emt 0:00:45]} 31. Nd3 {[%emt 0:00:07]} b6 {[%emt 0:03:04]} 32. Rc1 {[%emt 0:00:12]} Bg7 {[%emt 0:00:01]} 33. Nb4 {[%emt 0:01:40]} Kb7 {[%emt 0:00:01]} 34. Nc6 {[%emt 0:01:13]} Rd5 {[%emt 0:02:05]} 35. Rd1 {[%emt 0:00:19]} Rxd1 {[%emt 0:01:01]} 36. Kxd1 {[%emt 0:00:01]} Bf6 {[%emt 0:00:18]} 37. Ke2 {[%emt 0:00:14]} a6 {[%emt 0:00:13]} 38. Kf3 {[%emt 0:00:19]} axb5 {[%emt 0:00:17]} 39. axb5 {[%emt 0:00:02]} Kc8 {[%emt 0:00:36]} 40. Kf4 {[%emt 0:00:45]} Bc3 {[%emt 0:00:32]} 41. f3 {[%emt 0:36:22]} Kd7 {[%emt 0:33:31]} 42. Kxf5 {[%emt 0:03:17]} Kd6 {[%emt 0:00:12]} 43. g4 {[%emt 0:01:28]} Kc5 {[%emt 0:02:00]} 44. Na7 {[%emt 0:00:30]} Kd5 {[%emt 0:02:44]} 45. h5 {[%emt 0:00:00]} Bd2 {[%emt 0:00:00]} 46. e4+ {[%emt 0:00:00]} Kd4 {[%emt 0:00:00]} 47. Kf6 {[%emt 0:00:00]} Ke3 {[%emt 0:00:00]} 48. Kxf7 {[%emt 0:00:00]} Kxf3 {[%emt 0:00:00]} 49. e5 {[%emt 0:00:00]} Kxg4 {[%emt 0:00:00]} 50. e6 {[%emt 0:00:00]} Bg5 {[%emt 0:00:00]} 51. h6 {[%emt 0:00:00]} Kh5 {[%emt 0:00:00]} 52. Kg7 {[%emt 0:00:00]} 1-0

[Event "105th British-ch 2018"]
[Site "Hull"]
[Date "2018.08.05"]
[Round "9"]
[White "Roberson, Peter T"]
[Black "Kolbus, Dietmar"]
[Result "1-0"]
[ECO "B15"]
[WhiteElo "2401"]
[BlackElo "2303"]
[Annotator "NA"]
[PlyCount "81"]
[EventDate "2018.07.28"]
[EventType "swiss"]
[EventCountry "GBR"]
[SourceTitle "playchess.com"]
[Source "ChessBase"]
[SourceQuality "1"]
[TimeControl "40/5400+30:1800+30"]

1. e4 {[%emt 0:02:32]} g6 {[%emt 0:00:00]} 2. d4 {[%emt 0:00:20]} Bg7 {[%emt 0:00:00]} 3. Nc3 {[%emt 0:00:04]} c6 {[%emt 0:00:00]} 4. Nf3 {[%emt 0:02:24]} d5 {[%emt 0:00:04]} 5. Bd3 {[%emt 0:01:25]} Bg4 {[%emt 0:01:41]} 6. O-O {[%emt 0:01:10]} Nf6 {[%emt 0:06:50]} 7. e5 {[%emt 0:07:13]} Nfd7 {[%emt 0:00:13]} 8. h3 {[%emt 0:02:41]} Bxf3 {[%emt 0:00:11]} 9. Qxf3 {[%emt 0:00:02]} e6 {[%emt 0:00:15]} 10. Qg3 {[%emt 0:07:21]} Qb6 {[%emt 0:01:26]} 11. Be3 {[%emt 0:06:41]} Qxb2 {[%emt 0:00:51]} 12. Ne2 {[%emt 0:02:04]} Qb6 {[%emt 0:01:11]} 13. h4 {[%emt 0:01:41]} Qc7 {[%emt 0:00:26]} 14. h5 {[%emt 0:00:51]} Nxe5 {[%emt 0:06:27]} 15. Rab1 {[%emt 0:28:26]} Nbd7 {[%emt 0:00:25]} 16. dxe5 {[%emt 0:00:40]} Bxe5 {[%emt 0:00:20]} 17. Qh3 {[%emt 0:01:57]} b5 {[%emt 0:18:36]} 18. Nd4 {[%emt 0:11:27]} Qd6 {[%emt 0:01:01]} 19. Rfe1 {[%emt 0:04:03]} a6 {[%emt 0:07:37]} 20. Nf3 {[%emt 0:03:30]} Bf6 {[%emt 0:03:53]} 21. Bd4 {[%emt 0:02:56]} Bxd4 {[%emt 0:06:31]} 22. Nxd4 {[%emt 0:00:15]} O-O-O {[%emt 0:01:08]} 23. a4 {[%emt 0:00:52]} Nc5 {[%emt 0:07:05]} 24. axb5 {[%emt 0:02:06]} cxb5 {[%emt 0:02:19]} 25. Bxb5 {[%emt 0:03:39]} axb5 {[%emt 0:00:09]} 26. Nxb5 {[%emt 0:00:03]} Qb6 {[%emt 0:00:43]} 27. Nd4 {[%emt 0:02:01]} Qd6 {[%emt 0:00:32]} 28. Ra1 {[%emt 0:00:19]} Rhf8 {[%emt 0:03:41]} 29. Nb5 {[%emt 0:01:18]} Qb6 {[%emt 0:06:56]} 30. Reb1 {[%emt 0:00:14]} Kd7 {[%emt 0:00:52]} 31. Ra7+ {[%emt 0:01:37]} Nb7 {[%emt 0:00:22]} 32. Qa3 {[%emt 0:00:14]} Rb8 {[%emt 0:04:02]} 33. Rxb7+ {[%emt 0:00:22]} Qxb7 {[%emt 0:00:46]} 34. Qd6+ {[%emt 0:00:14]} Ke8 {[%emt 0:00:09]} 35. Nc7+ {[%emt 0:00:15]} Qxc7 {[%emt 0:00:05]} 36. Rxb8+ {[%emt 0:00:04]} Qxb8 {[%emt 0:00:10]} 37. Qxb8+ {[%emt 0:00:03]} Ke7 {[%emt 0:00:11]} 38. Qb4+ {[%emt 0:00:37]} Ke8 {[%emt 0:00:06]} 39. h6 {[%emt 0:00:14]} g5 {[%emt 0:01:04]} 40. Qd6 {[%emt 0:00:26]} g4 {[%emt 0:00:25]} 41. Kf1 {[%emt 0:30:47]} 1-0

[Event "105th British-ch 2018"]
[Site "Hull"]
[Date "2018.08.05"]
[Round "9"]
[White "Zakarian, David"]
[Black "Payne, Matthew J"]
[Result "1-0"]
[ECO "C04"]
[WhiteElo "2354"]
[BlackElo "2113"]
[Annotator "NA"]
[PlyCount "123"]
[EventDate "2018.07.28"]
[EventType "swiss"]
[EventCountry "GBR"]
[SourceTitle "playchess.com"]
[Source "ChessBase"]
[SourceQuality "1"]
[TimeControl "40/5400+30:1800+30"]

1. e4 {[%emt 0:00:00]} e6 {[%emt 0:00:00]} 2. d4 {[%emt 0:00:01]} d5 {[%emt 0:00:00]} 3. Nd2 {[%emt 0:00:18]} Nc6 {[%emt 0:00:00]} 4. Ngf3 {[%emt 0:00:42]} Nf6 {[%emt 0:00:14]} 5. e5 {[%emt 0:00:12]} Nd7 {[%emt 0:00:11]} 6. Nb3 {[%emt 0:00:09]} a5 {[%emt 0:00:45]} 7. a4 {[%emt 0:00:07]} Be7 {[%emt 0:00:23]} 8. h4 {[%emt 0:00:11]} b6 {[%emt 0:11:30]} 9. Ng5 {[%emt 0:00:26]} h6 {[%emt 0:10:17]} 10. Nxe6 {[%emt 0:00:56]} fxe6 {[%emt 0:00:10]} 11. Qh5+ {[%emt 0:00:05]} Kf8 {[%emt 0:00:01]} 12. Rh3 {[%emt 0:00:07]} Qe8 {[%emt 0:05:49]} 13. Rf3+ {[%emt 0:01:06]} Bf6 {[%emt 0:00:06]} 14. Qxe8+ {[%emt 0:02:49]} Kxe8 {[%emt 0:00:08]} 15. exf6 {[%emt 0:01:32]} gxf6 {[%emt 0:01:18]} 16. Bb5 {[%emt 0:02:05]} Nb4 {[%emt 0:07:28]} 17. Kd1 {[%emt 0:01:29]} c6 {[%emt 0:06:17]} 18. Be2 {[%emt 0:00:30]} Ba6 {[%emt 0:11:12]} 19. c3 {[%emt 0:02:58]} Bxe2+ {[%emt 0:00:21]} 20. Kxe2 {[%emt 0:00:05]} Na6 {[%emt 0:00:04]} 21. h5 {[%emt 0:02:34]} Ke7 {[%emt 0:07:25]} 22. Bd2 {[%emt 0:03:39]} Rag8 {[%emt 0:05:13]} 23. Kf1 {[%emt 0:01:31]} Rg4 {[%emt 0:04:55]} 24. g3 {[%emt 0:00:35]} c5 {[%emt 0:02:55]} 25. Re1 {[%emt 0:01:47]} e5 {[%emt 0:05:41]} 26. Rf4 {[%emt 0:05:30]} Rxf4 {[%emt 0:04:02]} 27. gxf4 {[%emt 0:00:53]} e4 {[%emt 0:00:05]} 28. f5 {[%emt 0:00:09]} cxd4 {[%emt 0:04:18]} 29. Nxd4 {[%emt 0:03:06]} Ne5 {[%emt 0:02:33]} 30. Ke2 {[%emt 0:01:20]} Nc4 {[%emt 0:03:40]} 31. Bc1 {[%emt 0:00:59]} Nc5 {[%emt 0:01:14]} 32. Rg1 {[%emt 0:19:09]} Nd3 {[%emt 0:04:19]} 33. Rg7+ {[%emt 0:01:37]} Kd6 {[%emt 0:00:03]} 34. Be3 {[%emt 0:00:07]} Nxe3 {[%emt 0:00:47]} 35. Kxe3 {[%emt 0:00:10]} Nxb2 {[%emt 0:01:23]} 36. Rf7 {[%emt 0:02:50]} Nxa4 {[%emt 0:01:54]} 37. Rxf6+ {[%emt 0:00:12]} Ke7 {[%emt 0:00:07]} 38. Re6+ {[%emt 0:00:17]} Kd7 {[%emt 0:00:27]} 39. Nb5 {[%emt 0:00:10]} Rf8 {[%emt 0:01:24]} 40. Kf4 {[%emt 0:10:35]} Nc5 {[%emt 0:00:07]} 41. Rxh6 {[%emt 0:30:19]} Nd3+ {[%emt 0:30:22]} 42. Kg5 {[%emt 0:00:12]} Nxf2 {[%emt 0:00:21]} 43. Rh7+ {[%emt 0:01:23]} Kc6 {[%emt 0:01:09]} 44. Nd4+ {[%emt 0:00:24]} Kd6 {[%emt 0:00:06]} 45. Rh6+ {[%emt 0:00:23]} Kd7 {[%emt 0:00:00]} 46. Rxb6 {[%emt 0:00:00]} Nh3+ {[%emt 0:00:00]} 47. Kg4 {[%emt 0:00:00]} Nf2+ {[%emt 0:00:00]} 48. Kf4 {[%emt 0:00:00]} Nd3+ {[%emt 0:00:00]} 49. Kg5 {[%emt 0:00:00]} Ne5 {[%emt 0:00:00]} 50. h6 {[%emt 0:00:00]} Nf7+ {[%emt 0:00:00]} 51. Kg6 {[%emt 0:00:00]} Ne5+ {[%emt 0:00:00]} 52. Kg7 {[%emt 0:00:00]} Rf7+ {[%emt 0:00:00]} 53. Kg8 {[%emt 0:00:00]} Ke8 {[%emt 0:00:00]} 54. Re6+ {[%emt 0:00:57]} Re7 {[%emt 0:00:00]} 55. Rxe5 {[%emt 0:01:58]} Rxe5 {[%emt 0:00:00]} 56. h7 {[%emt 0:00:04]} Kd7 {[%emt 0:00:00]} 57. h8=Q {[%emt 0:00:26]} Re8+ {[%emt 0:00:00]} 58. Kg7 {[%emt 0:00:05]} Rxh8 {[%emt 0:00:00]} 59. Kxh8 {[%emt 0:00:05]} e3 {[%emt 0:00:00]} 60. f6 {[%emt 0:00:09]} a4 {[%emt 0:00:00]} 61. f7 {[%emt 0:00:12]} Ke7 {[%emt 0:00:00]} 62. Kg7 {[%emt 0:00:08]} 1-0